bitfinex-derivatives/quotes_ETHF0:USTF0_20250217
["timestamp","ask_amount","ask_price","bid_price","bid_amount"]
[1739811781348,0.73339,2726.7,2726.5,0.40471]
[1739811782151,3.2078,2726.7,2726.5,0.40471]
[1739811782340,0.73341,2726.6,2726.5,0.40471]
[1739811782741,5.10685313,2726.9,2726.5,0.40471]
[1739811782944,3.2078,2727.0,2726.5,0.40471]
[1739811783152,3.2078,2727.3,2726.6,3.2078]
[1739811783447,2.94,2727.6,2727.1,3.2078]
[1739811783646,3.2078,2727.9,2727.1,3.2078]
[1739811783843,2.94,2727.7,2727.1,3.2078]
[1739811784045,2.94,2727.7,2727.3,0.73322]
[1739811784348,3.2078,2728.2,2727.7,0.7331]
[1739811784552,2.94,2728.2,2727.9,3.2078]
[1739811785049,2.94,2728.2,2727.7,3.2078]
[1739811785246,0.73307,2727.9,2727.7,3.2078]
[1739811785545,0.00549481,2728.1,2727.7,3.2078]
[1739811785749,0.00549481,2728.1,2727.5,0.00549481]
[1739811785953,0.73314,2727.6,2727.5,0.00549481]
[1739811786350,2.939,2727.7,2727.5,0.00549481]
[1739811786656,0.73314,2727.6,2727.5,0.00549481]
[1739811787044,1.29094,2727.6,2727.5,0.00549481]
[1739811787246,0.5578,2727.6,2727.5,0.00549481]
[1739811787554,6.1468,2727.7,2727.5,0.73866481]
[1739811787555,2.939,2727.7,2727.5,0.73866481]
[1739811787754,2.939,2727.7,2727.5,0.00549481]
[1739811787952,0.73314,2727.6,2727.5,0.00549481]
[1739811788362,2.939,2727.7,2727.5,0.00549481]
[1739811788853,0.00549481,2728.1,2727.5,0.00549481]
[1739811789051,0.00549481,2728.1,2727.6,3.2078]
[1739811789351,0.00549481,2728.1,2727.5,0.00549481]
[1739811789549,0.00549481,2728.1,2727.5,3.21329481]
[1739811789750,0.00549481,2728.1,2727.8,3.2078]
[1739811789951,3.5155,2729.3,2728.7,0.73283]
[1739811790156,4.3026,2729.6,2728.8,3.2078]
[1739811790157,2.939,2729.2,2728.8,3.2078]
[1739811790350,2.939,2729.2,2728.8,3.94062]
[1739811790548,2.939,2729.2,2728.3,3.7556]
[1739811790748,2.939,2729.2,2728.5,0.7329]
[1739811791156,0.00549481,2729.1,2728.6,0.00549481]
[1739811791751,0.00549481,2729.1,2728.6,3.21329481]
[1739811792253,0.00549481,2729.1,2729.0,0.73277]
[1739811792756,0.00549481,2729.1,2728.9,3.2078]
[1739811793152,0.00549481,2729.1,2729.0,0.73277]
[1739811793360,0.00549481,2729.1,2728.9,3.2078]
[1739811793862,0.00549481,2729.1,2729.0,0.73277]
[1739811794762,0.00549481,2729.1,2728.9,3.2078]
[1739811795059,0.00549481,2729.1,2729.0,0.73277]
[1739811795260,0.00549481,2729.1,2728.9,3.2078]
[1739811795457,0.00549481,2729.1,2728.7,0.5782]
[1739811795753,0.00549481,2729.1,2728.7,1.31103]
[1739811796061,0.73823481,2729.1,2728.7,1.31103]
[1739811796252,0.00549481,2729.1,2728.7,0.5782]
[1739811796453,0.00549481,2729.1,2728.8,0.73281]
[1739811796857,0.00549481,2729.1,2728.7,0.5782]
[1739811797456,0.00549481,2729.1,2728.9,3.94058]
[1739811798167,0.00549481,2729.1,2728.9,3.2078]
[1739811798354,0.00549481,2729.1,2729.0,0.73277]
[1739811798752,0.00549481,2729.1,2728.9,3.2078]
[1739811798959,0.00549481,2729.1,2729.0,0.73277]
[1739811799659,3.475,2730.2,2729.1,1.83179]
[1739811799965,3.475,2730.2,2729.7,3.2078]
[1739811800163,0.73255,2729.8,2729.7,3.2078]
[1739811800457,3.475,2730.2,2729.7,3.2078]
[1739811800662,0.73251,2730.0,2729.7,3.94036]
[1739811800860,0.73248,2730.1,2729.8,0.73254]
[1739811801061,0.73254,2729.9,2729.7,3.94037]
[1739811801263,0.00549481,2730.2,2729.7,3.2078]
[1739811801455,0.00549481,2730.2,2730.1,0.73247]
[1739811801655,0.00549481,2730.2,2730.0,3.2078]
[1739811802253,0.00549481,2730.2,2729.7,3.7814]
[1739811802461,0.00549481,2730.2,2730.0,0.7325]
[1739811802660,0.73795481,2730.2,2729.9,0.73252]
[1739811802863,0.73248,2730.1,2729.8,0.73254]
[1739811803061,0.00549481,2730.2,2729.7,3.7814]
[1739811803362,0.00549481,2730.2,2729.4,3.94044]
[1739811803557,0.00549481,2730.2,2729.4,3.2078]
[1739811803758,0.73249,2730.1,2729.7,0.73256]
[1739811803955,2.94049481,2730.2,2729.7,3.94036]
[1739811804157,2.94049481,2730.2,2729.7,3.2078]
[1739811804556,0.00549481,2730.2,2730.1,0.73247]
[1739811804761,0.00549481,2730.2,2729.8,1.83139]
[1739811804762,0.73794481,2730.2,2729.9,0.73252]
[1739811804955,0.00549481,2730.2,2729.7,3.2078]
[1739811805266,0.00549481,2730.2,2730.1,3.2078]
[1739811805673,0.00549481,2730.2,2730.1,3.94027]
[1739811806166,0.73793481,2730.2,2730.1,3.2078]
[1739811806561,0.00549481,2730.2,2729.5,3.2078]
[1739811806761,0.73253,2729.9,2729.5,3.94042]
[1739811807067,1.83664481,2730.2,2729.5,3.2078]
[1739811807260,0.73256,2729.8,2729.5,3.2078]
[1739811807460,0.73251,2730.0,2729.6,0.73259]
[1739811807664,0.73253,2729.9,2729.5,3.94042]
[1739811807969,0.73255,2729.8,2729.5,3.2078]
[1739811808168,2.934,2730.0,2729.5,3.2078]
[1739811808370,3.2078,2729.8,2729.2,0.5465]
[1739811808771,0.73268,2729.4,2729.2,0.5465]
[1739811809067,4.76529,2730.0,2729.2,0.5465]
[1739811809263,4.76529,2730.0,2729.3,0.73268]
[1739811809468,4.76529,2730.0,2729.4,3.2078]
[1739811809469,2.934,2730.0,2729.4,3.2078]
[1739811809663,6.87428,2730.1,2729.7,0.73257]
[1739811810365,0.73251,2730.0,2729.7,0.73257]
[1739811810561,0.73251,2730.0,2729.4,3.2078]
[1739811810562,0.00549481,2730.2,2729.8,3.2078]
[1739811810767,0.00549481,2730.2,2730.1,0.73247]
[1739811811267,0.00549481,2730.2,2730.1,3.94027]
[1739811811965,0.00549481,2730.2,2730.0,0.5447]
[1739811812269,0.00549481,2730.2,2729.9,0.5273]
[1739811812463,0.00549481,2730.2,2729.7,3.94038]
[1739811812765,0.00549481,2730.2,2729.5,0.5447]
[1739811812969,0.73253,2729.9,2729.6,0.73259]
[1739811813178,0.00549481,2730.2,2729.5,0.5447]
[1739811813866,0.00549481,2730.2,2729.7,3.2078]
[1739811814174,0.00549481,2730.2,2729.5,0.5447]
[1739811814175,0.73256,2729.8,2729.5,0.5447]
[1739811814565,0.73256,2729.8,2729.5,1.27732]
[1739811814764,0.73253,2729.9,2729.5,1.27732]
[1739811815068,0.00549481,2730.2,2729.7,7.57284957]
[1739811815266,0.00549481,2730.2,2730.0,0.73248]
[1739811815468,0.00549481,2730.2,2729.7,7.57284957]
[1739811815663,0.00549481,2730.2,2730.1,0.73247]
[1739811816363,0.00549481,2730.2,2730.0,0.73249]
[1739811816668,0.00549481,2730.2,2729.7,7.57284957]
[1739811816861,0.73248,2730.1,2729.7,7.57284957]
[1739811817060,0.73795481,2730.2,2729.9,0.73252]
[1739811817470,0.00549481,2730.2,2730.1,0.73247]
[1739811817771,0.00549481,2730.2,2730.0,0.73249]
[1739811817968,0.00549481,2730.2,2729.7,7.57284957]
[1739811818171,0.73795481,2730.2,2729.7,7.57284957]
[1739811818371,0.00549481,2730.2,2729.7,7.57284957]
[1739811818572,0.73794481,2730.2,2729.7,7.57284957]
[1739811818768,0.00549481,2730.2,2729.7,3.2078]
[1739811818964,0.00549481,2730.2,2730.0,0.73248]
[1739811819165,0.00549481,2730.2,2730.0,3.94028]
[1739811819366,0.00549481,2730.2,2730.1,0.73247]
[1739811820688,0.00549481,2730.2,2730.1,1.25847]
[1739811821073,0.7323,2730.8,2730.6,0.73232]
[1739811821269,0.73234,2730.6,2730.5,3.94015]
[1739811821572,0.73234,2730.6,2730.5,3.94016]
[1739811821771,0.73234,2730.6,2730.5,3.2078]
[1739811821975,2.931,2730.9,2730.5,3.2078]
[1739811822163,0.73231,2730.7,2730.6,0.73233]
[1739811822571,0.73234,2730.6,2730.5,3.94015]
[1739811822878,0.00549481,2730.8,2730.7,0.73231]
[1739811823277,2.931,2731.5,2730.6,4.36504957]
[1739811823476,2.931,2731.5,2730.8,3.2078]
[1739811823870,0.73219,2731.2,2730.9,0.73225]
[1739811824071,0.7322,2731.1,2730.9,0.73225]
[1739811824575,0.00549481,2731.3,2730.8,3.2078]
[1739811824773,0.73225,2731.0,2730.8,3.2078]
[1739811825168,0.73219,2731.2,2730.9,0.73226]
[1739811825564,0.7322,2731.2,2730.8,3.94007]
[1739811825874,0.00549481,2731.3,2730.8,3.94007]
[1739811826075,0.73224,2731.0,2730.8,3.2078]
[1739811826272,1.83045,2731.2,2730.5,3.2078]
[1739811826479,1.83045,2731.2,2730.3,7.82724438]
[1739811826673,0.73225,2731.0,2730.5,3.2078]
[1739811827069,0.73225,2731.0,2730.7,0.7323]
[1739811827281,0.73219,2731.2,2730.9,0.73224]
[1739811827573,2.93449481,2731.3,2730.9,0.73226]
[1739811827779,0.00549481,2731.3,2730.8,3.2078]
[1739811827978,0.00549481,2731.3,2730.4,0.5486]
[1739811827979,0.73226,2730.9,2730.7,0.73229]
[1739811828185,0.73226,2730.9,2730.5,3.94015]
[1739811828480,0.73233,2730.7,2730.3,3.46219481]
[1739811828669,0.73228,2730.9,2730.5,0.73235]
[1739811828872,0.7323,2730.8,2730.5,0.73235]
[1739811829184,2.929,2731.0,2730.5,0.73235]
[1739811829480,3.2078,2730.8,2730.3,0.00549481]
[1739811830075,0.73233,2730.7,2730.3,0.73789481]
[1739811830377,3.2078,2730.8,2730.3,0.73789481]
[1739811830573,3.2078,2730.8,2730.3,0.00549481]
[1739811830773,3.2078,2730.8,2730.3,0.73789481]
[1739811830972,0.73232,2730.7,2730.4,0.73238]
[1739811831173,2.929,2730.9,2730.5,0.73235]
[1739811831374,0.73223,2731.0,2730.7,0.7323]
[1739811831574,0.73225,2731.0,2730.7,0.7323]
[1739811832079,2.928,2731.1,2730.8,0.73228]
[1739811832279,0.00549481,2731.3,2731.1,0.7322]
[1739811832472,0.00549481,2731.3,2730.7,1.1339]
[1739811832672,0.73219,2731.2,2730.8,0.73226]
[1739811833074,0.00549481,2731.3,2730.8,0.73226]
[1739811833276,1.83590481,2731.3,2730.7,1.1339]
[1739811833575,0.00549481,2731.3,2731.0,0.73222]
[1739811833771,0.7322,2731.1,2730.9,3.2078]
[1739811834077,0.00549481,2731.3,2730.9,3.2078]
[1739811834578,0.73222,2731.1,2730.9,3.2078]
[1739811834778,0.00549481,2731.3,2730.9,3.2078]
[1739811834975,0.73221,2731.1,2730.9,3.94005]
[1739811835179,0.00549481,2731.3,2730.9,3.2078]
[1739811835376,0.73218,2731.2,2731.0,0.73223]
[1739811835690,0.00549481,2731.3,2730.9,3.2078]
[1739811835977,0.73765481,2731.3,2731.0,0.73222]
[1739811836182,0.73218,2731.2,2730.9,3.2078]
[1739811836375,0.73766481,2731.3,2731.0,0.73223]
[1739811836577,0.73218,2731.2,2731.0,0.73223]
[1739811836778,0.00549481,2731.3,2730.9,3.2078]
[1739811836981,0.7322,2731.2,2730.9,3.94004]
[1739811837284,0.7322,2731.2,2730.9,3.2078]
[1739811837285,0.73218,2731.2,2730.9,3.2078]
[1739811837485,0.00549481,2731.3,2730.9,3.2078]
[1739811837882,0.00549481,2731.3,2731.2,3.93998]
[1739811838188,0.00549481,2731.3,2731.2,3.2078]
[1739811838478,0.00549481,2731.3,2730.8,4.36504957]
[1739811838479,0.00549481,2731.3,2730.9,3.94003]
[1739811838786,0.73219,2731.2,2730.8,0.73228]
[1739811838987,0.73219,2731.2,2730.9,3.94006]
[1739811839285,0.00549481,2731.3,2730.9,3.2078]
[1739811839782,0.00549481,2731.3,2731.2,0.73218]
[1739811839982,0.00549481,2731.3,2730.9,3.2078]
[1739811840579,0.73223,2731.0,2730.7,1.1339]
[1739811840885,0.7322,2731.2,2730.9,0.73225]
[1739811841087,0.73221,2731.1,2730.9,0.73225]
[1739811841286,0.00549481,2731.3,2730.8,3.2078]
[1739811841482,0.73765481,2731.3,2731.0,0.73222]
[1739811841784,0.00549481,2731.3,2730.8,3.2078]
[1739811841979,0.73219,2731.2,2730.8,3.2078]
[1739811842187,0.00549481,2731.3,2731.2,0.73218]
[1739811845782,0.73218,2731.2,2731.1,3.2078]
[1739811845982,0.00549481,2731.3,2731.1,3.2078]
[1739811846384,0.00549481,2731.3,2731.2,0.73218]
[1739811846779,0.73218,2731.2,2731.1,3.2078]
[1739811847182,0.73218,2731.2,2730.7,4.3417]
[1739811847390,0.73218,2731.2,2730.7,5.07401]
[1739811847391,0.73227,2730.9,2730.7,5.07401]
[1739811847688,0.73228,2730.8,2730.7,3.2078]
[1739811848085,0.73224,2731.0,2730.7,3.9401]
[1739811848385,1.87422,2731.1,2730.7,3.2078]
[1739811848591,1.142,2731.1,2730.8,0.73228]
[1739811849095,0.00549481,2731.3,2731.2,0.73218]
[1739811850492,0.00549481,2731.3,2731.0,3.7867]
[1739811850701,0.7322,2731.1,2731.0,3.2078]
[1739811850891,0.73765481,2731.3,2731.1,0.7322]
[1739811851086,0.00549481,2731.3,2730.9,0.5694]
[1739811851388,0.73222,2731.1,2730.9,0.5694]
[1739811851588,0.7322,2731.2,2731.0,0.73222]
[1739811851780,0.00549481,2731.3,2730.9,0.5694]
[1739811851985,0.73223,2731.1,2730.9,0.5694]
[1739811852281,1.83045,2731.2,2730.7,3.2078]
[1739811852481,0.57859481,2731.3,2730.7,3.2078]
[1739811852682,0.57859481,2731.3,2730.8,0.73227]
[1739811853081,0.73222,2731.1,2730.8,0.73227]
[1739811853482,0.57859481,2731.3,2731.0,0.73222]
[1739811853682,0.57859481,2731.3,2730.7,4.81195669]
[1739811853888,1.83045,2731.2,2730.7,3.2078]
[1739811854190,0.73228,2730.8,2730.7,3.2078]
[1739811854395,0.73226,2730.9,2730.6,1.27764]
[1739811854589,0.73227,2730.9,2730.6,1.27763]
[1739811855094,3.78639481,2731.3,2730.6,2.14945669]
[1739811855292,3.78639481,2731.3,2730.6,0.5453]
[1739811855594,0.7323,2730.8,2730.6,1.27763]
[1739811855796,5.61679481,2731.3,2730.6,1.27762]
[1739811855995,0.73227,2730.9,2730.6,1.27762]
[1739811856290,1.83047,2731.2,2730.6,0.5453]
[1739811856591,0.73232,2730.7,2730.4,4.48918]
[1739811856789,2.923,2731.1,2730.5,0.73236]
[1739811856986,0.73233,2730.7,2730.4,3.7568]
[1739811857182,5.0384,2731.0,2730.4,3.7568]
[1739811857392,5.0384,2731.0,2730.4,4.48917]
[1739811857587,0.73234,2730.6,2730.4,4.48917]
[1739811857789,0.73232,2730.7,2730.4,4.48917]
[1739811857990,0.5364,2730.9,2730.4,3.7568]
[1739811858294,0.73229,2730.8,2730.5,0.73235]
[1739811858596,0.5364,2730.9,2730.7,0.7323]
[1739811858896,3.94004,2731.0,2730.7,0.7323]
[1739811859392,3.2078,2731.0,2730.4,3.7568]
[1739811859589,0.73231,2730.7,2730.5,0.73235]
[1739811859895,4.32279481,2731.3,2730.4,3.7568]
[1739811860093,1.11499481,2731.3,2730.8,3.2078]
[1739811860295,0.00549481,2731.3,2731.2,0.73218]
[1739811861293,0.00549481,2731.3,2730.7,6.03462268]
[1739811861499,0.73228,2730.8,2730.7,1.22266599]
[1739811861694,5.03831,2731.1,2730.3,1.6096515]
[1739811861997,3.2078,2731.1,2730.4,0.73238]
[1739811862183,3.2078,2731.1,2730.4,0.73237]
[1739811862490,5.03836,2731.1,2730.3,0.00549481]
[1739811862690,0.73239,2730.4,2730.3,0.00549481]
[1739811863092,0.5254,2730.7,2730.3,0.00549481]
[1739811863295,0.73235,2730.6,2730.3,0.00549481]
[1739811863597,0.5254,2730.7,2730.3,0.00549481]
[1739811863791,0.73237,2730.5,2730.3,0.00549481]
[1739811864194,0.5254,2730.7,2730.3,0.00549481]
[1739811864393,0.73234,2730.6,2730.3,0.00549481]
[1739811864903,0.73238,2730.5,2730.3,0.00549481]
[1739811865397,1.25772,2730.7,2730.3,0.73789481]
[1739811866191,0.73239,2730.4,2730.3,0.00549481]
[1739811866390,0.5254,2730.7,2730.3,0.00549481]
[1739811866596,0.73235,2730.6,2730.3,0.00549481]
[1739811867299,0.5254,2730.7,2730.3,0.73789481]
[1739811867300,1.25773,2730.7,2730.3,0.73789481]
[1739811867494,0.5254,2730.7,2730.3,0.00549481]
[1739811867699,0.5254,2730.7,2730.3,0.73791481]
[1739811867700,0.73235,2730.6,2730.3,0.73791481]
[1739811868199,0.5254,2730.7,2730.3,0.00549481]
[1739811868398,0.73235,2730.6,2730.3,0.00549481]
[1739811868697,0.5254,2730.7,2730.3,0.00549481]
[1739811868999,0.5254,2730.7,2730.4,0.73238]
[1739811869397,0.5254,2730.7,2730.3,0.00549481]
[1739811869597,1.25772,2730.7,2730.4,0.73238]
[1739811870001,0.5254,2730.7,2730.3,0.00549481]
[1739811870197,1.25773,2730.7,2730.4,0.73239]
[1739811870603,3.2078,2731.1,2730.5,3.2078]
[1739811870905,3.2078,2732.1,2731.2,0.73218]
[1739811871096,0.73208,2731.6,2731.2,0.73218]
[1739811871401,2.921,2731.7,2731.2,0.73218]
[1739811871899,3.65306,2731.7,2731.2,0.73218]
[1739811872097,0.73211,2731.5,2731.2,0.73218]
[1739811872403,0.73218,2731.2,2731.1,3.2078]
[1739811873595,2.921,2731.7,2731.1,3.2078]
[1739811873791,3.2078,2731.5,2730.9,3.2078]
[1739811874103,2.921,2731.7,2731.2,0.73218]
[1739811874403,3.65305,2731.7,2731.2,3.93998]
[1739811874696,0.73764481,2731.3,2731.2,3.2078]
[1739811875002,0.00549481,2731.3,2731.2,3.2078]
[1739811875203,0.00549481,2731.3,2731.2,3.93998]
[1739811875703,0.73764481,2731.3,2731.0,0.73221]
[1739811875899,0.73764481,2731.3,2731.1,0.7322]
[1739811876207,0.00549481,2731.3,2731.1,0.7322]
[1739811876702,0.73766481,2731.3,2730.9,6.68745825]
[1739811876904,0.00549481,2731.3,2730.9,6.68745825]
[1739811877205,0.00549481,2731.3,2731.2,0.73218]
[1739811877404,0.00549481,2731.3,2730.9,6.68745825]
[1739811877697,0.73219,2731.2,2731.0,0.73221]
[1739811878013,4.74945,2731.2,2730.5,1.0646]
[1739811878207,0.73231,2730.7,2730.5,1.79696]
[1739811878503,2.39831,2731.1,2730.5,1.79696]
[1739811878504,0.7323,2730.8,2730.5,1.79696]
[1739811878701,0.7323,2730.8,2730.6,0.73233]
[1739811878909,0.5678,2731.1,2730.9,0.73224]
[1739811879201,2.919,2731.0,2730.9,0.73226]
[1739811879507,0.00549481,2731.3,2731.2,0.73218]
[1739811881201,0.00549481,2731.3,2731.2,1.29148]
[1739811882406,0.00549481,2731.3,2731.2,1.59202223]
[1739811882604,0.00549481,2731.3,2731.2,1.29148]
[1739811886310,0.73764481,2731.3,2731.2,1.29148]
[1739811886507,0.00549481,2731.3,2731.2,1.29148]
[1739811889005,2.91745364,2731.8,2731.2,1.29148]
[1739811889203,0.73211,2731.5,2731.4,3.93991]
[1739811889807,0.73211,2731.5,2731.4,3.2078]
[1739811890409,0.73211,2731.5,2731.1,3.7533]
[1739811890710,0.73218,2731.2,2731.1,3.2078]
[1739811891503,3.93991,2731.5,2730.8,3.788]
[1739811891813,0.7322,2731.2,2730.8,3.788]
[1739811892308,0.7322,2731.1,2730.9,0.73223]
[1739811892812,0.73222,2731.1,2730.9,0.73223]
[1739811893009,1.83033,2731.4,2730.9,0.73223]
[1739811893209,3.93991,2731.5,2730.8,3.788]
[1739811893210,0.73221,2731.1,2731.0,0.73222]
[1739811893409,0.73221,2731.1,2730.9,0.73224]
[1739811893607,1.1477,2731.3,2730.8,3.788]
[1739811893813,2.97809,2731.3,2730.9,0.73225]
[1739811894012,0.73221,2731.1,2730.8,3.788]
[1739811894311,1.1477,2731.3,2730.8,3.788]
[1739811894512,0.73223,2731.1,2730.9,0.73225]
[1739811894714,0.73223,2731.1,2730.8,3.788]
[1739811894911,4.0627,2731.3,2730.8,3.2078]
[1739811895109,0.73226,2730.9,2730.8,3.2078]
[1739811895415,0.73228,2730.9,2730.6,0.73231]
[1739811895813,0.73231,2730.7,2730.5,3.2078]
[1739811896011,3.7543,2731.2,2730.5,3.2078]
[1739811896417,0.73223,2731.0,2730.7,0.73229]
[1739811896607,3.7543,2731.2,2730.7,0.73229]
[1739811896810,0.73225,2731.0,2730.7,0.73229]
[1739811897015,1.27869,2731.2,2730.9,0.73225]
[1739811897216,0.5465,2731.2,2730.9,0.73225]
[1739811897413,1.27869,2731.2,2730.9,0.73225]
[1739811897717,6.68745825,2732.1,2731.1,3.47965825]
[1739811897917,2.915,2731.6,2731.5,0.73209]
[1739811898117,0.73566936,2731.7,2731.3,3.2078]
[1739811898118,0.00362936,2731.7,2731.3,3.2078]
[1739811898315,0.00362936,2731.7,2731.5,0.73208]
[1739811898611,0.73208,2731.6,2731.1,3.47965825]
[1739811898818,0.00362936,2731.7,2731.2,3.2078]
[1739811899214,0.73567936,2731.7,2731.5,0.73208]
[1739811899921,0.73212,2731.5,2731.3,0.73214]
[1739811900109,0.73213,2731.4,2731.2,3.93996]
[1739811900312,0.00362936,2731.7,2731.0,1.0711]
[1739811900515,0.7322,2731.2,2731.0,1.0711]
[1739811900818,2.914,2731.3,2730.9,3.2078]
[1739811901014,2.914,2731.3,2731.2,3.93998]
[1739811902016,0.00362936,2731.7,2731.2,3.2078]
[1739811902217,0.00362936,2731.7,2731.5,3.93988]
[1739811902620,0.00362936,2731.7,2731.6,0.73207]
[1739811903013,3.2078,2733.0,2731.6,5.08381494]
[1739811903225,1.29736,2732.8,2732.4,0.73185]
[1739811903417,0.73178,2732.7,2732.3,0.73186]
[1739811903819,3.4796,2732.8,2732.3,0.73186]
[1739811904017,3.4796,2732.8,2732.2,4.58665825]
[1739811904217,3.4796,2732.8,2732.3,0.00549481]
[1739811904218,0.73185,2732.4,2732.3,0.00549481]
[1739811905420,5.03724,2732.7,2732.3,0.00549481]
[1739811905421,3.2078,2732.7,2732.3,0.00549481]
[1739811905623,3.4796,2732.8,2732.3,0.00549481]
[1739811905824,0.73178,2732.7,2732.3,0.73736481]
[1739811906119,0.54,2732.9,2732.6,0.73179]
[1739811906315,0.54,2732.9,2732.5,3.2078]
[1739811906316,3.453,2732.9,2732.5,3.2078]
[1739811906523,4.18473,2732.9,2732.5,3.2078]
[1739811906710,4.18473,2732.9,2732.5,3.93961]
[1739811906916,3.453,2732.9,2732.7,0.73177]
[1739811907121,3.453,2732.9,2732.5,3.2078]
[1739811907320,0.54,2732.9,2732.5,6.68745825]
[1739811907622,2.912,2733.0,2732.8,3.93953]
[1739811908016,3.2078,2733.3,2732.8,6.68745825]
[1739811908325,0.5701,2733.7,2733.2,3.2078]
[1739811908520,2.912,2733.6,2733.2,3.7437]
[1739811908820,2.912,2733.6,2733.3,0.73161]
[1739811909014,2.912,2733.6,2733.2,3.2078]
[1739811909215,6.39165825,2733.6,2732.9,3.2078]
[1739811909418,0.5701,2733.7,2732.9,3.2078]
[1739811909618,2.912,2733.6,2733.3,3.9394]
[1739811909921,2.912,2733.7,2733.3,3.2078]
[1739811910119,2.912,2733.7,2733.4,1.1394]
[1739811910328,0.5815,2733.9,2733.7,0.73149]
[1739811910516,2.912,2734.0,2733.6,3.2078]
[1739811911020,3.64344,2734.0,2733.6,3.2078]
[1739811911217,2.912,2734.0,2733.6,3.93933]
[1739811911416,2.912,2734.0,2733.6,3.2078]
[1739811911816,0.73155,2733.6,2733.4,0.5681]
[1739811912125,0.73163,2733.3,2733.0,6.68745825]
[1739811912317,2.911,2733.4,2733.0,3.47965825]
[1739811912519,2.911,2733.4,2732.9,3.2078]
[1739811912820,2.911,2733.4,2732.7,0.5456]
[1739811913124,0.73175,2732.8,2732.6,3.2078]
[1739811913315,3.7382,2733.3,2732.6,3.2078]
[1739811913824,0.73177,2732.7,2732.6,3.2078]
[1739811914119,3.64177,2732.8,2732.6,3.2078]
[1739811914421,1.8291,2733.2,2732.6,3.2078]
[1739811914422,2.91,2733.0,2732.6,3.2078]
[1739811914923,0.73172,2732.9,2732.6,3.2078]
[1739811915316,0.73177,2732.7,2732.6,3.2078]
[1739811915511,0.73183,2732.5,2732.4,0.5596]
[1739811915819,0.73185,2732.4,2732.3,0.00549481]
[1739811916013,1.1132,2732.9,2732.3,0.00549481]
[1739811916014,0.73184,2732.5,2732.3,0.00549481]
[1739811916323,0.73185,2732.4,2732.3,0.00549481]
[1739811916726,6.84965,2732.4,2732.3,0.00549481]
[1739811917317,4.321,2732.9,2732.3,0.00549481]
[1739811917620,0.73184,2732.5,2732.3,0.00549481]
[1739811918020,2.909,2732.8,2732.3,0.00549481]
[1739811918724,0.73185,2732.4,2732.3,0.00549481]
[1739811918923,3.64085,2732.4,2732.3,0.00549481]
[1739811919225,2.909,2732.4,2731.4,0.5436]
[1739811919426,1.0645,2732.3,2731.5,3.7549]
[1739811919826,4.2723,2732.3,2731.5,3.7549]
[1739811920228,4.2723,2732.3,2731.6,0.73206]
[1739811920427,0.00549481,2732.2,2731.6,0.73755481]
[1739811920627,0.73197,2732.0,2731.6,0.00549481]
[1739811920924,0.00549481,2732.2,2732.1,0.73193]
[1739811921127,0.00549481,2732.2,2732.1,3.93973]
[1739811921821,0.00549481,2732.2,2732.1,4.46403]
[1739811922021,2.909,2732.9,2732.1,5.56194]
[1739811922229,0.73177,2732.8,2732.4,3.93964]
[1739811922535,2.909,2732.9,2732.4,3.2078]
[1739811923324,0.73191,2732.2,2732.1,0.5243]
[1739811924326,5.03731,2732.6,2732.1,3.7321]
[1739811924625,1.82957,2732.5,2732.1,0.5243]
[1739811924931,0.73191,2732.2,2732.1,0.5243]
[1739811925327,1.82957,2732.5,2731.8,3.2078]
[1739811925525,0.732,2731.9,2731.6,0.00549481]
[1739811925823,0.73195,2732.1,2731.7,0.73204]
[1739811926024,0.732,2731.9,2731.6,0.00549481]
[1739811926231,1.82971,2732.3,2731.6,0.73756481]
[1739811926429,0.73198,2732.0,2731.6,0.73756481]
[1739811926730,1.82982,2732.2,2731.6,0.00549481]
[1739811926930,0.73204,2731.7,2731.6,0.00549481]
[1739811928129,3.93984,2731.7,2731.6,0.00549481]
[1739811928636,5.08464,2731.7,2731.6,0.00549481]
[1739811929935,4.3526,2731.7,2731.1,3.7677]
[1739811930135,0.73217,2731.2,2731.1,3.7677]
[1739811930335,0.5676,2731.6,2731.1,3.7677]
[1739811930635,0.73217,2731.2,2731.1,3.7677]
[1739811931530,0.73217,2731.2,2731.1,3.2078]
[1739811932230,2.907,2731.3,2730.9,0.00549481]
[1739811932423,0.73223,2731.0,2730.9,0.00549481]
[1739811932627,0.73236,2730.5,2730.4,3.2078]
[1739811933243,2.907,2730.6,2730.0,3.61309]
[1739811933543,0.73247,2730.1,2730.0,3.61309]
[1739811933929,0.73247,2730.1,2730.0,3.61858481]
[1739811934533,3.63947,2730.1,2730.0,0.41078481]
[1739811936534,4.17727,2730.1,2730.0,0.41078481]
[1739811937034,3.2078,2731.3,2730.0,10.76530108]
[1739811937227,0.73223,2731.1,2730.5,5.08686627]
[1739811937427,3.2078,2731.3,2730.5,4.35451627]
[1739811937636,0.73224,2731.0,2730.5,4.35451627]
[1739811937830,0.73228,2730.9,2730.4,3.2078]
[1739811938438,2.907,2731.0,2730.4,3.2078]
[1739811938640,3.2078,2730.9,2730.1,4.8572]
[1739811938838,3.2078,2730.9,2730.1,1.1134]
[1739811939338,2.907,2731.0,2730.5,0.73236]
[1739811939734,2.906,2730.9,2730.4,3.2078]
[1739811940243,0.73234,2730.6,2730.4,3.2078]
[1739811940431,0.73236,2730.5,2730.4,3.2078]
[1739811940635,2.906,2730.9,2730.4,3.2078]
[1739811941032,0.73235,2730.6,2730.4,3.2078]
[1739811941233,2.906,2730.9,2730.4,3.2078]
[1739811941538,0.73236,2730.5,2730.4,3.2078]
[1739811942131,0.73244,2730.2,2730.1,1.1134]
[1739811942327,0.73244,2730.2,2730.1,0.5569]
[1739811942538,2.906,2730.3,2730.0,0.41078481]
[1739811942738,2.906,2730.3,2730.1,0.73245]